[Event "Late-Titled-Tuesday-Blitz-January-16-2024"]
[Site "Chess.com"]
[Date "2024.01.16"]
[Round "2"]
[White "ChristopherYoo"]
[Black "iulik86"]
[Result "1-0"]
[WhiteElo "2984"]
[BlackElo "2595"]
[TimeControl "180+1"]
[EndTime "14:16:32 PST"]
[Termination "ChristopherYoo won on time"]

1. d4 {[%clk 0:03:00.9]} 1... d5 {[%clk 0:02:58.3]} 2. c4 {[%clk 0:03:00.5]}
2... e6 {[%clk 0:02:58.4]} 3. Nf3 {[%clk 0:02:59.8]} 3... c6 {[%clk 0:02:54.7]}
4. Qc2 {[%clk 0:02:52]} 4... Nf6 {[%clk 0:02:43.7]} 5. Bg5 {[%clk 0:02:42.7]}
5... Nbd7 {[%clk 0:02:40.5]} 6. Nbd2 {[%clk 0:02:42.7]} 6... h6 {[%clk
0:02:34.4]} 7. Bh4 {[%clk 0:02:42.3]} 7... g5 {[%clk 0:02:25.2]} 8. Bg3 {[%clk
0:02:42]} 8... Nh5 {[%clk 0:02:25.2]} 9. e3 {[%clk 0:02:35.9]} 9... Nxg3 {[%clk
0:02:20.4]} 10. hxg3 {[%clk 0:02:36.8]} 10... Bg7 {[%clk 0:02:20.4]} 11. g4
{[%clk 0:02:14.1]} 11... b6 {[%clk 0:02:00.2]} 12. cxd5 {[%clk 0:02:12.2]} 12...
cxd5 {[%clk 0:01:59.3]} 13. Bb5 {[%clk 0:02:11.3]} 13... Bb7 {[%clk 0:01:53.4]}
14. Ne5 {[%clk 0:01:58.9]} 14... Bxe5 {[%clk 0:01:51.6]} 15. dxe5 {[%clk
0:01:59.8]} 15... Rc8 {[%clk 0:01:46.3]} 16. Qa4 {[%clk 0:01:50.9]} 16... a6
{[%clk 0:01:43.1]} 17. Bxd7+ {[%clk 0:01:50.8]} 17... Qxd7 {[%clk 0:01:43]} 18.
Qb4 {[%clk 0:01:51.2]} 18... Qb5 {[%clk 0:01:34.2]} 19. Qxb5+ {[%clk 0:01:48.8]}
19... axb5 {[%clk 0:01:34.3]} 20. Nf3 {[%clk 0:01:47.3]} 20... Ke7 {[%clk
0:01:13.4]} 21. Nd4 {[%clk 0:01:47.3]} 21... b4 {[%clk 0:01:11.3]} 22. Kd2
{[%clk 0:01:45.7]} 22... f6 {[%clk 0:01:06.6]} 23. f4 {[%clk 0:01:45.6]} 23...
gxf4 {[%clk 0:01:01.9]} 24. exf4 {[%clk 0:01:43.7]} 24... Rc4 {[%clk 0:01:01.3]}
25. Ke3 {[%clk 0:01:42.4]} 25... fxe5 {[%clk 0:00:56.5]} 26. fxe5 {[%clk
0:01:43.3]} 26... Rg8 {[%clk 0:00:53.3]} 27. Rxh6 {[%clk 0:01:40.2]} 27... Rxg4
{[%clk 0:00:52.6]} 28. Rh7+ {[%clk 0:01:37]} 28... Ke8 {[%clk 0:00:48]} 29. Nxe6
{[%clk 0:01:28.8]} 29... Rge4+ {[%clk 0:00:44.2]} 30. Kd2 {[%clk 0:01:26.2]}
30... Rxe5 {[%clk 0:00:39.6]} 31. Rxb7 {[%clk 0:01:24.6]} 31... Rxe6 {[%clk
0:00:38.8]} 32. Rh1 {[%clk 0:01:24.9]} 32... Rd4+ {[%clk 0:00:21]} 33. Kc1
{[%clk 0:01:23.5]} 33... Rc6+ {[%clk 0:00:05.8]} 34. Kb1 {[%clk 0:01:23.6]} 1-0

[Event "Late-Titled-Tuesday-Blitz-January-16-2024"]
[Site "Chess.com"]
[Date "2024.01.16"]
[Round "2"]
[White "OYAcosta"]
[Black "lrjchess"]
[Result "0-1"]
[WhiteElo "2122"]
[BlackElo "2468"]
[TimeControl "180+1"]
[EndTime "14:16:40 PST"]
[Termination "lrjchess won on time"]

1. d4 {[%clk 0:02:22.1]} 1... Nf6 {[%clk 0:02:56.7]} 2. Nf3 {[%clk 0:02:21.7]}
2... g6 {[%clk 0:02:57.2]} 3. c4 {[%clk 0:02:21.2]} 3... Bg7 {[%clk 0:02:57.6]}
4. Nc3 {[%clk 0:02:21.9]} 4... O-O {[%clk 0:02:58.1]} 5. e4 {[%clk 0:02:22.6]}
5... d6 {[%clk 0:02:59]} 6. h3 {[%clk 0:02:22.3]} 6... e5 {[%clk 0:02:57.8]} 7.
d5 {[%clk 0:02:22.2]} 7... Na6 {[%clk 0:02:50.2]} 8. Be3 {[%clk 0:02:10]} 8...
Nc5 {[%clk 0:02:49]} 9. Nd2 {[%clk 0:02:08.9]} 9... a5 {[%clk 0:02:48.8]} 10. g4
{[%clk 0:02:08.8]} 10... Nfd7 {[%clk 0:02:47.3]} 11. Be2 {[%clk 0:02:02.4]}
11... c6 {[%clk 0:02:45.4]} 12. Qc2 {[%clk 0:02:01.6]} 12... a4 {[%clk
0:02:45.2]} 13. a3 {[%clk 0:02:00.4]} 13... Qa5 {[%clk 0:02:43.7]} 14. h4 {[%clk
0:01:57.5]} 14... cxd5 {[%clk 0:02:30.2]} 15. Nxd5 {[%clk 0:01:54.1]} 15... Nb3
{[%clk 0:02:16.8]} 16. Rd1 {[%clk 0:01:22.5]} 16... Ndc5 {[%clk 0:02:13.4]} 17.
O-O {[%clk 0:01:17.8]} 17... Nd4 {[%clk 0:02:05.6]} 18. Bxd4 {[%clk 0:01:15.2]}
18... exd4 {[%clk 0:02:06.5]} 19. Nb1 {[%clk 0:01:05.5]} 19... d3 {[%clk
0:01:58.3]} 20. Bxd3 {[%clk 0:01:05.2]} 20... Bxg4 {[%clk 0:01:58.9]} 21. f3
{[%clk 0:01:04.9]} 21... Bh3 {[%clk 0:01:50.6]} 22. Rfe1 {[%clk 0:01:03.2]}
22... Qd8 {[%clk 0:01:45.8]} 23. Qf2 {[%clk 0:00:55.6]} 23... f5 {[%clk
0:01:40.7]} 24. Nbc3 {[%clk 0:00:54.7]} 24... fxe4 {[%clk 0:01:36]} 25. Bxe4
{[%clk 0:00:54.8]} 25... Kh8 {[%clk 0:01:24.5]} 26. Qg3 {[%clk 0:00:43.3]} 26...
Bf5 {[%clk 0:01:20.5]} 27. Ne3 {[%clk 0:00:26.1]} 27... Be5 {[%clk 0:01:18.9]}
28. Qg2 {[%clk 0:00:22.9]} 28... Qxh4 {[%clk 0:01:12.4]} 29. Bxf5 {[%clk
0:00:08.7]} 29... gxf5 {[%clk 0:01:13.3]} 30. Kf1 {[%clk 0:00:04.7]} 30... Rg8
{[%clk 0:01:12.3]} 31. Qf2 {[%clk 0:00:04.9]} 31... Bg3 {[%clk 0:01:09.9]} 0-1

[Event "Late-Titled-Tuesday-Blitz-January-16-2024"]
[Site "Chess.com"]
[Date "2024.01.16"]
[Round "2"]
[White "Machteldvf"]
[Black "Trovita84"]
[Result "1-0"]
[WhiteElo "2466"]
[BlackElo "2105"]
[TimeControl "180+1"]
[EndTime "14:16:42 PST"]
[Termination "Machteldvf won by resignation"]

1. e4 {[%clk 0:03:00.4]} 1... c5 {[%clk 0:02:54.7]} 2. Nf3 {[%clk 0:03:00.3]}
2... d6 {[%clk 0:02:53.1]} 3. d4 {[%clk 0:03:00.4]} 3... cxd4 {[%clk 0:02:53.7]}
4. Nxd4 {[%clk 0:03:01.3]} 4... Nf6 {[%clk 0:02:53.9]} 5. Nc3 {[%clk 0:03:01.7]}
5... a6 {[%clk 0:02:54.6]} 6. Bg5 {[%clk 0:02:59]} 6... e6 {[%clk 0:02:40.9]} 7.
f4 {[%clk 0:02:58.7]} 7... Be7 {[%clk 0:02:32.1]} 8. Qf3 {[%clk 0:02:57.1]} 8...
Qc7 {[%clk 0:02:27.7]} 9. O-O-O {[%clk 0:02:54.1]} 9... Bd7 {[%clk 0:02:27.2]}
10. Bd3 {[%clk 0:02:50.8]} 10... Nc6 {[%clk 0:02:25.2]} 11. Nxc6 {[%clk
0:02:50.2]} 11... Bxc6 {[%clk 0:02:25.8]} 12. Rhe1 {[%clk 0:02:49.4]} 12... h6
{[%clk 0:02:24.5]} 13. Bxf6 {[%clk 0:02:40.7]} 13... Bxf6 {[%clk 0:02:24]} 14.
Nd5 {[%clk 0:02:41.3]} 14... exd5 {[%clk 0:01:28.3]} 15. exd5+ {[%clk
0:02:42.2]} 15... Kf8 {[%clk 0:01:27.4]} 16. dxc6 {[%clk 0:02:40.9]} 16... bxc6
{[%clk 0:01:28.3]} 17. Bc4 {[%clk 0:02:33.7]} 17... g6 {[%clk 0:01:15.9]} 18. f5
{[%clk 0:02:21.1]} 18... g5 {[%clk 0:00:59.9]} 19. Qa3 {[%clk 0:02:16.7]} 19...
Rd8 {[%clk 0:00:48.8]} 20. Qxa6 {[%clk 0:02:14.5]} 20... Kg7 {[%clk 0:00:47.5]}
21. Qa3 {[%clk 0:02:11.2]} 21... d5 {[%clk 0:00:45.4]} 22. Bb3 {[%clk
0:02:10.2]} 22... Qxh2 {[%clk 0:00:41.3]} 23. Qc5 {[%clk 0:02:03.6]} 23... Qf4+
{[%clk 0:00:37.4]} 24. Kb1 {[%clk 0:02:03.3]} 24... Rhe8 {[%clk 0:00:25.6]} 25.
Rxe8 {[%clk 0:02:00.8]} 25... Rxe8 {[%clk 0:00:24.2]} 26. a3 {[%clk 0:01:48.6]}
26... Qe5 {[%clk 0:00:20]} 27. c3 {[%clk 0:01:45.1]} 27... Rb8 {[%clk
0:00:19.8]} 28. Ka2 {[%clk 0:01:43.6]} 28... Qe2 {[%clk 0:00:15.3]} 29. Rb1
{[%clk 0:01:37]} 29... Qd2 {[%clk 0:00:07.2]} 30. Qxc6 {[%clk 0:01:35.6]} 30...
d4 {[%clk 0:00:07.1]} 31. Qd5 {[%clk 0:01:33.5]} 31... Rf8 {[%clk 0:00:05.5]}
32. Rd1 {[%clk 0:01:30.2]} 32... Qf4 {[%clk 0:00:02.1]} 33. cxd4 {[%clk
0:01:30.4]} 33... Qc7 {[%clk 0:00:01.4]} 34. Rd3 {[%clk 0:01:29]} 34... Rd8
{[%clk 0:00:01.9]} 35. Qe4 {[%clk 0:01:23.2]} 35... Qa7 {[%clk 0:00:01.6]} 36.
d5 {[%clk 0:01:22.4]} 36... Qd7 {[%clk 0:00:01.9]} 37. d6 {[%clk 0:01:22]} 37...
Qxd6 {[%clk 0:00:02.8]} 38. Rxd6 {[%clk 0:01:21.9]} 38... Rxd6 {[%clk
0:00:03.7]} 39. Qc4 {[%clk 0:01:22.3]} 1-0

[Event "Late-Titled-Tuesday-Blitz-January-16-2024"]
[Site "Chess.com"]
[Date "2024.01.16"]
[Round "2"]
[White "AntonSmirnov"]
[Black "nindjaxx8"]
[Result "1-0"]
[WhiteElo "2922"]
[BlackElo "2574"]
[TimeControl "180+1"]
[EndTime "14:16:43 PST"]
[Termination "AntonSmirnov won by resignation"]

1. e4 {[%clk 0:02:55.6]} 1... e6 {[%clk 0:02:56.4]} 2. d4 {[%clk 0:02:55.3]}
2... d5 {[%clk 0:02:55.7]} 3. Nc3 {[%clk 0:02:56]} 3... Bb4 {[%clk 0:02:54.5]}
4. e5 {[%clk 0:02:56.2]} 4... c5 {[%clk 0:02:54.1]} 5. a3 {[%clk 0:02:56.9]}
5... Bxc3+ {[%clk 0:02:53.8]} 6. bxc3 {[%clk 0:02:57.8]} 6... Ne7 {[%clk
0:02:51.7]} 7. Qg4 {[%clk 0:02:58.4]} 7... Qc7 {[%clk 0:02:51.9]} 8. Qxg7 {[%clk
0:02:56.4]} 8... Rg8 {[%clk 0:02:51.9]} 9. Qxh7 {[%clk 0:02:56.7]} 9... cxd4
{[%clk 0:02:52.2]} 10. Rb1 {[%clk 0:02:56.6]} 10... dxc3 {[%clk 0:02:06.5]} 11.
f4 {[%clk 0:02:54.2]} 11... Nbc6 {[%clk 0:02:02.6]} 12. Nf3 {[%clk 0:02:54]}
12... Bd7 {[%clk 0:01:55.7]} 13. g3 {[%clk 0:02:54.2]} 13... O-O-O {[%clk
0:01:51.9]} 14. Qd3 {[%clk 0:02:53.6]} 14... Na5 {[%clk 0:01:43.4]} 15. Bg2
{[%clk 0:02:38.2]} 15... Nf5 {[%clk 0:01:35.6]} 16. Nd4 {[%clk 0:02:35.8]} 16...
Nxd4 {[%clk 0:01:22.5]} 17. Qxd4 {[%clk 0:02:36]} 17... b6 {[%clk 0:01:19.2]}
18. O-O {[%clk 0:02:33.7]} 18... Qc4 {[%clk 0:01:13]} 19. Be3 {[%clk 0:02:26.9]}
19... Ba4 {[%clk 0:01:08.4]} 20. Rfc1 {[%clk 0:02:17.4]} 20... Kd7 {[%clk
0:00:23.6]} 21. Rb4 {[%clk 0:02:13.2]} 21... Qxd4 {[%clk 0:00:23.6]} 22. Bxd4
{[%clk 0:02:13.4]} 22... Bc6 {[%clk 0:00:22.9]} 23. Bxc3 {[%clk 0:02:13.3]}
23... Rc8 {[%clk 0:00:21.9]} 24. Be1 {[%clk 0:02:03.7]} 24... Nc4 {[%clk
0:00:21.7]} 25. h4 {[%clk 0:01:59.6]} 25... Bb7 {[%clk 0:00:20.2]} 26. a4 {[%clk
0:01:58.1]} 26... Ne3 {[%clk 0:00:15.7]} 27. a5 {[%clk 0:01:58.2]} 27... Rxc2
{[%clk 0:00:10.2]} 28. Rxc2 {[%clk 0:01:51.4]} 28... Nxc2 {[%clk 0:00:11.1]} 29.
Rb1 {[%clk 0:01:51]} 29... Nxe1 {[%clk 0:00:11.4]} 30. Rxe1 {[%clk 0:01:51.6]}
30... Rxg3 {[%clk 0:00:11.8]} 31. Kh2 {[%clk 0:01:50.2]} 31... Rg4 {[%clk
0:00:11]} 32. Kh3 {[%clk 0:01:50.6]} 32... Rxf4 {[%clk 0:00:11.1]} 33. h5 {[%clk
0:01:50.6]} 33... Ke7 {[%clk 0:00:09.5]} 34. Rc1 {[%clk 0:01:49.8]} 34... Kf8
{[%clk 0:00:07.4]} 35. Rc7 {[%clk 0:01:49.7]} 35... Ba6 {[%clk 0:00:05.7]} 36.
Rxa7 {[%clk 0:01:49.8]} 36... Be2 {[%clk 0:00:05.6]} 37. h6 {[%clk 0:01:49.6]}
37... bxa5 {[%clk 0:00:02.9]} 38. Ra8+ {[%clk 0:01:49.7]} 38... Ke7 {[%clk
0:00:02.7]} 39. h7 {[%clk 0:01:50.3]} 39... Rf5 {[%clk 0:00:01.4]} 40. h8=Q
{[%clk 0:01:49.9]} 40... Rh5+ {[%clk 0:00:02]} 41. Qxh5 {[%clk 0:01:50.2]} 41...
Bxh5 {[%clk 0:00:02.9]} 42. Ra7+ {[%clk 0:01:50.7]} 42... Kf8 {[%clk 0:00:02.8]}
43. Rxa5 {[%clk 0:01:51.6]} 43... Bg6 {[%clk 0:00:03.5]} 44. Kh4 {[%clk
0:01:52.1]} 44... Kg7 {[%clk 0:00:04.1]} 45. Kg5 {[%clk 0:01:52.6]} 45... Bf5
{[%clk 0:00:04.6]} 46. Ra7 {[%clk 0:01:52.9]} 46... d4 {[%clk 0:00:04.1]} 47.
Rd7 {[%clk 0:01:52.7]} 47... d3 {[%clk 0:00:04.3]} 48. Bf1 {[%clk 0:01:53.4]}
48... Kf8 {[%clk 0:00:04.6]} 49. Kf6 {[%clk 0:01:53.6]} 1-0

[Event "Late-Titled-Tuesday-Blitz-January-16-2024"]
[Site "Chess.com"]
[Date "2024.01.16"]
[Round "2"]
[White "SEBAZZANO"]
[Black "zverr1"]
[Result "0-1"]
[WhiteElo "2228"]
[BlackElo "2511"]
[TimeControl "180+1"]
[EndTime "14:16:43 PST"]
[Termination "zverr1 won on time"]

1. d4 {[%clk 0:03:00.9]} 1... Nf6 {[%clk 0:02:59.6]} 2. Bf4 {[%clk 0:02:59.8]}
2... g6 {[%clk 0:03:00]} 3. Nc3 {[%clk 0:02:58.7]} 3... d5 {[%clk 0:03:00.2]} 4.
e3 {[%clk 0:02:57.9]} 4... Bg7 {[%clk 0:03:00.3]} 5. h4 {[%clk 0:02:58.4]} 5...
h6 {[%clk 0:03:00.4]} 6. Nf3 {[%clk 0:02:45.9]} 6... c6 {[%clk 0:02:59.5]} 7.
Ne5 {[%clk 0:02:45]} 7... Nbd7 {[%clk 0:02:59.1]} 8. Bd3 {[%clk 0:02:42.1]} 8...
Nxe5 {[%clk 0:02:54.8]} 9. Bxe5 {[%clk 0:02:38.4]} 9... O-O {[%clk 0:02:52.5]}
10. Bxf6 {[%clk 0:02:13.1]} 10... Bxf6 {[%clk 0:02:47.4]} 11. h5 {[%clk
0:02:12.9]} 11... g5 {[%clk 0:02:47.2]} 12. Qf3 {[%clk 0:02:13.2]} 12... e5
{[%clk 0:02:36.5]} 13. dxe5 {[%clk 0:02:11.8]} 13... Bxe5 {[%clk 0:02:37.4]} 14.
Bf5 {[%clk 0:01:40.5]} 14... Qf6 {[%clk 0:02:26.8]} 15. Bxc8 {[%clk 0:01:26.3]}
15... Bxc3+ {[%clk 0:02:25]} 16. Ke2 {[%clk 0:01:07.7]} 16... Raxc8 {[%clk
0:02:03]} 17. bxc3 {[%clk 0:01:04.6]} 17... Qxc3 {[%clk 0:02:03.9]} 18. Rhc1
{[%clk 0:00:41.3]} 18... Qc4+ {[%clk 0:01:48.7]} 19. Ke1 {[%clk 0:00:39.6]}
19... d4 {[%clk 0:01:48.9]} 20. Qf6 {[%clk 0:00:14.6]} 20... dxe3 {[%clk
0:01:32.8]} 21. Qxh6 {[%clk 0:00:13.2]} 21... exf2+ {[%clk 0:01:26.5]} 22. Kxf2
{[%clk 0:00:14.1]} 22... Qc5+ {[%clk 0:01:24.3]} 23. Kf1 {[%clk 0:00:12]} 23...
Rce8 {[%clk 0:01:09.6]} 24. Qf6 {[%clk 0:00:07.6]} 24... Re5 {[%clk 0:00:57]}
0-1

[Event "Late-Titled-Tuesday-Blitz-January-16-2024"]
[Site "Chess.com"]
[Date "2024.01.16"]
[Round "2"]
[White "Anna20240"]
[Black "IgorBjelobrk"]
[Result "0-1"]
[WhiteElo "1015"]
[BlackElo "2644"]
[TimeControl "180+1"]
[EndTime "14:16:49 PST"]
[Termination "IgorBjelobrk won by resignation"]

1. d4 {[%clk 0:02:56.9]} 1... e6 {[%clk 0:02:56.1]} 2. c4 {[%clk 0:02:56.9]}
2... b6 {[%clk 0:02:54.6]} 3. Nf3 {[%clk 0:02:56]} 3... Bb7 {[%clk 0:02:54.2]}
4. g3 {[%clk 0:02:56.2]} 4... f5 {[%clk 0:02:53.7]} 5. Bg2 {[%clk 0:02:53.8]}
5... Nf6 {[%clk 0:02:53.1]} 6. Nc3 {[%clk 0:02:52]} 6... Bb4 {[%clk 0:02:50.7]}
7. O-O {[%clk 0:02:51]} 7... O-O {[%clk 0:02:49.8]} 8. Qc2 {[%clk 0:02:42.7]}
8... Bxc3 {[%clk 0:02:47.7]} 9. bxc3 {[%clk 0:02:42.3]} 9... Be4 {[%clk
0:02:47.1]} 10. Qb3 {[%clk 0:02:26.6]} 10... Nc6 {[%clk 0:02:31.2]} 11. Bf4
{[%clk 0:02:12.9]} 11... Na5 {[%clk 0:02:28.3]} 12. Qb4 {[%clk 0:02:07.2]} 12...
Rc8 {[%clk 0:02:14]} 13. Ne5 {[%clk 0:01:50.3]} 13... c5 {[%clk 0:02:08.6]} 14.
dxc5 {[%clk 0:01:47.8]} 14... Rxc5 {[%clk 0:02:08]} 15. Bxe4 {[%clk 0:01:47]}
15... Nxe4 {[%clk 0:02:07.6]} 16. Nd3 {[%clk 0:01:46]} 16... Rxc4 {[%clk
0:02:06.5]} 17. Qb5 {[%clk 0:01:37.2]} 17... Nxc3 {[%clk 0:02:04.9]} 18. Qb2
{[%clk 0:01:32.1]} 18... d5 {[%clk 0:01:47.5]} 19. Ne5 {[%clk 0:01:16.4]} 19...
Rc8 {[%clk 0:01:46.5]} 20. Rac1 {[%clk 0:01:02.8]} 20... d4 {[%clk 0:01:43.1]}
21. Nd3 {[%clk 0:00:59.5]} 21... Nc4 {[%clk 0:01:37.7]} 22. Qc2 {[%clk
0:00:57.1]} 22... Qd5 {[%clk 0:01:29.2]} 23. Nb4 {[%clk 0:00:44.4]} 23... Qe4
{[%clk 0:01:25.3]} 24. Rfe1 {[%clk 0:00:16.4]} 24... e5 {[%clk 0:01:16.8]} 25.
Bg5 {[%clk 0:00:15.1]} 25... h6 {[%clk 0:01:16.5]} 26. Be7 {[%clk 0:00:15]}
26... Rfe8 {[%clk 0:01:14.6]} 27. Qxe4 {[%clk 0:00:11.6]} 27... fxe4 {[%clk
0:01:11.9]} 28. Bh4 {[%clk 0:00:08.2]} 28... g5 {[%clk 0:01:11.3]} 29. Bxg5
{[%clk 0:00:07.6]} 29... hxg5 {[%clk 0:01:11.2]} 30. e3 {[%clk 0:00:07.8]} 30...
a5 {[%clk 0:01:04.3]} 31. Nc2 {[%clk 0:00:04.6]} 0-1

[Event "Late-Titled-Tuesday-Blitz-January-16-2024"]
[Site "Chess.com"]
[Date "2024.01.16"]
[Round "2"]
[White "pirulillo"]
[Black "jmpion"]
[Result "0-1"]
[WhiteElo "2273"]
[BlackElo "2526"]
[TimeControl "180+1"]
[EndTime "14:16:49 PST"]
[Termination "jmpion won on time"]

1. e4 {[%clk 0:03:00.9]} 1... e5 {[%clk 0:02:59.8]} 2. Bc4 {[%clk 0:02:59.1]}
2... Nf6 {[%clk 0:02:59.8]} 3. d3 {[%clk 0:02:57.9]} 3... c6 {[%clk 0:02:50.6]}
4. Nf3 {[%clk 0:02:55.9]} 4... d5 {[%clk 0:02:51]} 5. Bb3 {[%clk 0:02:56.1]}
5... Bd6 {[%clk 0:02:49.2]} 6. Nc3 {[%clk 0:02:54.8]} 6... d4 {[%clk 0:02:48.8]}
7. Ne2 {[%clk 0:02:50.7]} 7... h6 {[%clk 0:02:46.8]} 8. Ng3 {[%clk 0:02:49.4]}
8... a5 {[%clk 0:02:45.1]} 9. a4 {[%clk 0:02:44.5]} 9... Be6 {[%clk 0:02:45.1]}
10. Bxe6 {[%clk 0:02:41]} 10... fxe6 {[%clk 0:02:46]} 11. O-O {[%clk 0:02:39.9]}
11... Nbd7 {[%clk 0:02:44.6]} 12. Nh4 {[%clk 0:02:29.5]} 12... Nf8 {[%clk
0:02:43.5]} 13. c3 {[%clk 0:01:47.4]} 13... g5 {[%clk 0:02:28]} 14. Nf3 {[%clk
0:01:46.5]} 14... g4 {[%clk 0:02:20.2]} 15. Nd2 {[%clk 0:01:40.5]} 15... h5
{[%clk 0:02:17.8]} 16. Nc4 {[%clk 0:01:31.1]} 16... Ng6 {[%clk 0:02:00]} 17.
cxd4 {[%clk 0:01:18.5]} 17... exd4 {[%clk 0:01:56.3]} 18. e5 {[%clk 0:01:10.6]}
18... Nxe5 {[%clk 0:01:53.3]} 19. Nxe5 {[%clk 0:01:09.9]} 19... Bxe5 {[%clk
0:01:52.9]} 20. Re1 {[%clk 0:01:10.3]} 20... Bxg3 {[%clk 0:01:43.8]} 21. fxg3
{[%clk 0:01:02.2]} 21... Qd5 {[%clk 0:01:24.9]} 22. Bf4 {[%clk 0:00:57.9]} 22...
Nd7 {[%clk 0:01:20.4]} 23. Re4 {[%clk 0:00:48.1]} 23... O-O-O {[%clk 0:01:17.2]}
24. Rc1 {[%clk 0:00:24.7]} 24... e5 {[%clk 0:01:14.8]} 25. Bg5 {[%clk
0:00:23.1]} 25... Rdg8 {[%clk 0:01:14.7]} 26. Bd2 {[%clk 0:00:22.9]} 26... Nc5
{[%clk 0:01:05.7]} 27. Re1 {[%clk 0:00:16.4]} 27... Nxd3 {[%clk 0:01:04.5]} 28.
Bxa5 {[%clk 0:00:13.5]} 28... Nxc1 {[%clk 0:00:59.4]} 0-1

[Event "Late-Titled-Tuesday-Blitz-January-16-2024"]
[Site "Chess.com"]
[Date "2024.01.16"]
[Round "2"]
[White "ChessicallyInclined"]
[Black "EddieUrquhart"]
[Result "1-0"]
[WhiteElo "2725"]
[BlackElo "2423"]
[TimeControl "180+1"]
[EndTime "14:16:54 PST"]
[Termination "ChessicallyInclined won by resignation"]

1. Nf3 {[%clk 0:03:00.9]} 1... Nf6 {[%clk 0:02:56.8]} 2. c4 {[%clk 0:03:00.1]}
2... e6 {[%clk 0:02:56.7]} 3. g3 {[%clk 0:02:58.4]} 3... d5 {[%clk 0:02:56.8]}
4. Bg2 {[%clk 0:02:58.2]} 4... Be7 {[%clk 0:02:56.7]} 5. O-O {[%clk 0:02:57.9]}
5... O-O {[%clk 0:02:54.1]} 6. b3 {[%clk 0:02:56.8]} 6... b6 {[%clk 0:02:54]} 7.
Bb2 {[%clk 0:02:56.7]} 7... Bb7 {[%clk 0:02:54.2]} 8. d3 {[%clk 0:02:56.4]} 8...
c5 {[%clk 0:02:54.4]} 9. Nbd2 {[%clk 0:02:46.2]} 9... Nc6 {[%clk 0:02:54.4]} 10.
Ne5 {[%clk 0:02:41]} 10... Nxe5 {[%clk 0:02:53]} 11. Bxe5 {[%clk 0:02:41.9]}
11... Qd7 {[%clk 0:02:50.2]} 12. Qc2 {[%clk 0:02:30.8]} 12... d4 {[%clk
0:02:49]} 13. Bxb7 {[%clk 0:02:24.2]} 13... Qxb7 {[%clk 0:02:49.9]} 14. Bxf6
{[%clk 0:02:13.8]} 14... Bxf6 {[%clk 0:02:50.8]} 15. a3 {[%clk 0:02:13.6]} 15...
g6 {[%clk 0:02:27.9]} 16. b4 {[%clk 0:02:12]} 16... e5 {[%clk 0:02:25.5]} 17.
bxc5 {[%clk 0:02:08.9]} 17... bxc5 {[%clk 0:02:25.1]} 18. Rab1 {[%clk
0:02:08.5]} 18... Qc6 {[%clk 0:02:22.9]} 19. Ne4 {[%clk 0:01:56.5]} 19... Bg7
{[%clk 0:02:22.3]} 20. Rb5 {[%clk 0:01:55.9]} 20... f5 {[%clk 0:02:11.6]} 21.
Rxc5 {[%clk 0:01:46]} 21... Qa6 {[%clk 0:02:00.1]} 22. Ng5 {[%clk 0:01:45.2]}
22... Qxa3 {[%clk 0:01:55.5]} 23. Rb5 {[%clk 0:01:29.9]} 23... Bf6 {[%clk
0:01:47.7]} 24. Ne6 {[%clk 0:01:21.7]} 24... Rf7 {[%clk 0:01:47.5]} 25. c5
{[%clk 0:01:16.2]} 25... Re8 {[%clk 0:01:40]} 26. Qc4 {[%clk 0:01:12]} 26... Qc3
{[%clk 0:01:34.8]} 27. Qd5 {[%clk 0:01:10.3]} 27... h5 {[%clk 0:01:05.1]} 28. c6
{[%clk 0:00:59.3]} 28... Rc8 {[%clk 0:00:48.2]} 29. Rc5 {[%clk 0:00:35.8]} 29...
Qd2 {[%clk 0:00:38.5]} 30. c7 {[%clk 0:00:34.8]} 30... Qxe2 {[%clk 0:00:38.1]}
31. Nd8 {[%clk 0:00:32.7]} 31... Bxd8 {[%clk 0:00:37.9]} 32. cxd8=Q+ {[%clk
0:00:32.8]} 32... Rxd8 {[%clk 0:00:38.5]} 33. Qxd8+ {[%clk 0:00:33]} 33... Kg7
{[%clk 0:00:38.9]} 34. Rc8 {[%clk 0:00:31.4]} 1-0